fUST/lending_fUST_20260107
["ID","MTS","AMOUNT","RATE_DAILY","PERIOD"]
[400714228,1767786683726,-927.69,0.0003041,2]
[400714229,1767786683737,-4613.91,0.0003041,2]
[400714230,1767786683747,-500.0,0.0003041,2]
[400714231,1767786683757,-14651.58,0.0003041,2]
[400714232,1767786683768,-500.0,0.0003041,2]
[400714233,1767786683778,-500.0,0.0003041,2]
[400714234,1767786683789,-909.99,0.0003041,2]
[400714235,1767786683800,-2787.6,0.0003041,2]
[400714236,1767786683810,-500.0,0.0003041,2]
[400714237,1767786683820,-1890.14,0.0003041,2]
[400714238,1767786683830,-500.0,0.0003041,2]
[400714239,1767786683840,-505.05,0.0003041,2]
[400714240,1767786683850,-500.0,0.0003041,2]
[400714241,1767786683860,-500.0,0.0003041,2]
[400714242,1767786683870,-717.62,0.0003041,2]
[400714243,1767786683881,-853.68,0.0003041,2]
[400714244,1767786683893,-500.0,0.0003041,2]
[400714245,1767786683905,-500.0,0.0003041,2]
[400714246,1767786683916,-1076.6,0.0003041,2]
[400714247,1767786683927,-450.71898931,0.0003041,2]
[400714248,1767786683937,-689.83,0.0003041,2]
[400714249,1767786683947,-836.4,0.0003041,2]
[400714250,1767786683957,-500.0,0.0003041,2]
[400714251,1767786683968,-500.0,0.0003041,2]
[400714252,1767786683978,-797.84,0.0003041,2]
[400714253,1767786683989,-690.11,0.0003041,2]
[400714254,1767786684000,-3088.57,0.0003041,2]
[400714255,1767786684010,-500.0,0.0003041,2]
[400714256,1767786684021,-500.0,0.0003041,2]
[400714257,1767786684032,-500.0,0.0003041,2]
[400714258,1767786684042,-500.0,0.0003041,2]
[400714259,1767786684052,-307.11918499,0.0003041,2]
[400714260,1767786684062,-2100.0,0.00030411,7]
[400714261,1767786684072,-500.0,0.00030423,7]
[400714262,1767786684083,-668.9121178,0.00030428,2]
[400714263,1767786684093,-7197.7705983,0.00030457,2]
[400714264,1767786684103,-500.0,0.00030462,7]
[400714265,1767786684114,-564.0,0.00030505,2]
[400714266,1767786684124,-191.37491647,0.00030542,19]
[400714267,1767786684134,-1981.16465421,0.00030596,10]
[400714268,1767786684144,-151.0,0.000306,31]
[400714269,1767786684154,-151.0,0.000306,31]
[400714270,1767786684164,-564.0,0.00030635,2]
[400714271,1767786684174,-564.0,0.00030665,7]
[400714272,1767786684324,-2768.0,0.00030671,7]
[400714273,1767786684334,-3333.0958472,0.00030684,2]
[400714274,1767786684345,-557.84,0.00030684,2]
[400714275,1767786684355,-500.0,0.00030684,2]
[400714276,1767786684366,-174.802772,0.00030684,2]
[400714277,1767786684378,-500.0,0.00030684,2]
[400714278,1767786684389,-1000.0,0.00030684,2]
[400714279,1767786684399,-300.76193579,0.00030684,2]
[400714280,1767786684409,-913.08,0.00030684,2]
[400714281,1767786684420,-500.0,0.00030684,2]
[400714282,1767786684430,-500.0,0.00030684,2]
[400714283,1767786684440,-1000.0,0.00030684,2]
[400714284,1767786684451,-756.53,0.00030684,2]
[400714285,1767786684461,-601.36,0.00030684,2]
[400714286,1767786684471,-200.0,0.00030684,2]
[400714287,1767786684481,-500.0,0.00030684,2]
[400714288,1767786684491,-500.0,0.00030684,2]
[400714289,1767786684501,-836.74,0.00030684,2]
[400714290,1767786684511,-500.0,0.00030684,2]
[400714291,1767786684520,-500.0,0.00030684,2]
[400714292,1767786684530,-500.0,0.00030684,2]
[400714293,1767786684540,-3962.5,0.00030684,2]
[400714294,1767786684551,-582.84,0.00030684,2]
[400714295,1767786684560,-500.0,0.00030684,2]
[400714296,1767786684570,-500.0,0.00030684,2]
[400714297,1767786684579,-360.8739275,0.00030684,2]
[400714298,1767786684589,-725.03,0.00030684,2]
[400714299,1767786684600,-500.0,0.00030684,2]
[400714300,1767786684610,-2251.87,0.00030684,2]
[400714301,1767786684619,-956.27,0.00030684,2]
[400714302,1767786684629,-637.59,0.00030684,2]
[400714303,1767786684640,-500.0,0.00030684,2]
[400714304,1767786684650,-661.34,0.00030684,2]
[400714305,1767786684661,-927.69,0.00030684,2]
[400714306,1767786684672,-500.0,0.00030684,2]
[400714307,1767786684682,-4613.91,0.00030684,2]
[400714308,1767786684693,-14651.58,0.00030684,2]
[400714309,1767786684703,-500.0,0.00030684,2]
[400714310,1767786684713,-909.99,0.00030684,2]
[400714311,1767786684728,-500.0,0.00030684,2]
[400714312,1767786684738,-2787.6,0.00030684,2]
[400714313,1767786684748,-500.0,0.00030684,2]
[400714314,1767786684757,-1890.14,0.00030684,2]
[400714315,1767786684767,-500.0,0.00030684,2]
[400714316,1767786684776,-505.05,0.00030684,2]
[400714317,1767786684785,-500.0,0.00030684,2]
[400714318,1767786684795,-500.0,0.00030684,2]
[400714319,1767786684805,-717.62,0.00030684,2]
[400714320,1767786684814,-853.68,0.00030684,2]
[400714321,1767786684823,-500.0,0.00030684,2]
[400714322,1767786684834,-528.13886245,0.00030684,2]
[400714323,1767786684847,-1076.6,0.00030684,2]
[400714324,1767786684857,-689.83,0.00030684,2]
[400714325,1767786684867,-836.4,0.00030684,2]
[400714326,1767786684876,-500.0,0.00030684,2]
[400714327,1767786684888,-500.0,0.00030684,2]
[400714328,1767786684898,-797.84,0.00030684,2]
[400714329,1767786684908,-690.11,0.00030684,2]
[400714330,1767786684918,-3088.57,0.00030684,2]
[400714331,1767786684928,-500.0,0.00030684,2]
[400714332,1767786684938,-500.0,0.00030684,2]
[400714333,1767786684948,-500.0,0.00030684,2]
[400714334,1767786684958,-500.0,0.00030684,2]
[400714335,1767786684967,-1299.19626571,0.00030685,5]
[400714336,1767786684978,-750.0,0.00030685,5]
[400714337,1767786684989,-750.65512167,0.00030685,5]
[400714338,1767786685002,-1646.0,0.000307,7]
[400714339,1767786685013,-14624.46,0.000307,6]
[400714340,1767786685028,-564.0,0.00030723,2]
[400714341,1767786685049,-720.0,0.00030738,30]
[400714342,1767786685067,-5000.0,0.00030747,2]
[400714343,1767786685089,-2100.0,0.00030828,7]
[400714344,1767786685105,-628.0,0.00030831,2]
[400714345,1767786685123,-2145.0,0.00030831,2]
[400714346,1767786685143,-1365.0,0.00030831,2]
[400714347,1767786685161,-714.0,0.00030831,2]
[400714348,1767786685181,-417.0,0.00030831,2]
[400714349,1767786685203,-3333.0958472,0.00030958,2]
[400714350,1767786685224,-557.84,0.00030958,2]
[400714351,1767786685241,-500.0,0.00030958,2]
[400714352,1767786685256,-500.0,0.00030958,2]
[400714353,1767786685275,-935.42793912,0.00030958,2]
[400714354,1767786685289,-913.08,0.00030958,2]
[400714355,1767786685304,-500.0,0.00030958,2]
[400714356,1767786685321,-500.0,0.00030958,2]
[400714357,1767786685338,-1000.0,0.00030958,2]
[400714358,1767786685354,-756.53,0.00030958,2]
[400714359,1767786685370,-601.36,0.00030958,2]
[400714360,1767786685386,-200.0,0.00030958,2]
[400714361,1767786685402,-500.0,0.00030958,2]
[400714362,1767786685418,-500.0,0.00030958,2]
[400714363,1767786685433,-836.74,0.00030958,2]
[400714364,1767786685448,-500.0,0.00030958,2]
[400714365,1767786685463,-500.0,0.00030958,2]
[400714366,1767786685478,-500.0,0.00030958,2]
[400714367,1767786685492,-3962.5,0.00030958,2]
[400714368,1767786685509,-582.84,0.00030958,2]
[400714369,1767786685524,-500.0,0.00030958,2]
[400714370,1767786685538,-546.40698577,0.00030958,2]
[400714371,1767786685553,-681.41448413,0.00030958,2]
[400714372,1767786685941,-43.61551587,0.00030958,2]
[400714373,1767786685957,-2251.87,0.00030958,2]
[400714374,1767786685973,-956.27,0.00030958,2]
[400714375,1767786685988,-637.59,0.00030958,2]
[400714376,1767786686003,-500.0,0.00030958,2]
[400714377,1767786686020,-661.34,0.00030958,2]
[400714378,1767786686035,-927.69,0.00030958,2]
[400714379,1767786686049,-500.0,0.00030958,2]
[400714380,1767786686064,-4613.91,0.00030958,2]
[400714381,1767786686214,-14651.58,0.00030958,2]
[400714382,1767786686225,-500.0,0.00030958,2]
[400714383,1767786686235,-909.99,0.00030958,2]
[400714384,1767786686244,-401.33329691,0.00030958,2]
[400714385,1767786686254,-2787.6,0.00030958,2]
[400714386,1767786686264,-402.32,0.00030958,30]
[400714387,1767786686275,-500.0,0.00030958,2]
[400714388,1767786686284,-1890.14,0.00030958,2]
[400714389,1767786686294,-500.0,0.00030958,2]
[400714390,1767786686303,-505.05,0.00030958,2]
[400714391,1767786686313,-500.0,0.00030958,2]
[400714392,1767786686322,-500.0,0.00030958,2]
[400714393,1767786686331,-717.62,0.00030958,2]
[400714394,1767786686340,-853.68,0.00030958,2]
[400714395,1767786686351,-500.0,0.00030958,2]
[400714396,1767786686361,-1076.6,0.00030958,2]
[400714397,1767786686371,-689.83,0.00030958,2]
[400714398,1767786686380,-836.4,0.00030958,2]
[400714399,1767786686390,-500.0,0.00030958,2]
[400714400,1767786686399,-500.0,0.00030958,2]
[400714401,1767786686410,-797.84,0.00030958,2]
[400714402,1767786686419,-690.11,0.00030958,2]
[400714403,1767786686428,-3088.57,0.00030958,2]
[400714404,1767786686438,-626.32134771,0.00030958,2]
[400714405,1767786686447,-500.71623148,0.00030958,2]
[400714406,1767786686457,-500.0,0.00030958,2]
[400714407,1767786686467,-500.0,0.00030958,2]
[400714408,1767786686476,-190.2708929,0.00031,120]
[400714409,1767786686485,-191.51603111,0.00031,120]
[400714410,1767786686495,-176.11325056,0.00031,120]
[400714411,1767786686504,-163.98489072,0.00031,120]
[400714412,1767786686514,-174.41697135,0.00031,120]
[400714413,1767786686523,-194.89245098,0.00031,120]
[400714414,1767786686532,-206.91086702,0.00031,120]
[400714415,1767786686542,-164.04291735,0.00031,120]
[400714416,1767786686552,-160.0,0.00031,14]
[400714417,1767786686561,-186.0317041,0.00031,120]
[400714418,1767786686571,-1247.79119589,0.00031,120]
[400714419,1767786686580,-2000.0,0.00031046,7]
[400714420,1767786686590,-25963.54,0.000311,2]
[400714421,1767786686599,-151.0,0.000311,31]
[400714422,1767786686608,-151.0,0.000311,31]
[400714423,1767786686618,-151.0,0.000311,31]
[400714424,1767786686628,-151.0,0.000311,31]
[400714425,1767786686638,-151.0,0.000311,31]
[400714426,1767786686647,-151.0,0.000311,31]
[400714427,1767786686657,-151.0,0.000311,31]
[400714428,1767786686667,-2100.0,0.00031117,7]
[400714429,1767786686676,-178.0,0.00031178,44]
[400714430,1767786686686,-3333.0958472,0.00031232,2]
[400714431,1767786686696,-557.84,0.00031232,2]
[400714432,1767786686705,-500.0,0.00031232,2]
[400714433,1767786686715,-151.0,0.00031232,31]
[400714434,1767786686724,-151.0,0.00031232,31]
[400714435,1767786686734,-151.0,0.00031232,31]
[400714436,1767786686743,-233.0,0.00031232,31]
[400714437,1767786686752,-500.0,0.00031232,2]
[400714438,1767786686762,-151.0,0.00031232,31]
[400714439,1767786686772,-151.0,0.00031232,31]
[400714440,1767786686781,-151.0,0.00031232,31]
[400714441,1767786686790,-913.08,0.00031232,2]
[400714442,1767786686799,-500.0,0.00031232,2]
[400714443,1767786686808,-500.0,0.00031232,2]
[400714444,1767786686820,-1000.0,0.00031232,2]
[400714445,1767786686829,-756.53,0.00031232,2]
[400714446,1767786686839,-601.36,0.00031232,2]
[400714447,1767786686848,-200.0,0.00031232,2]
[400714448,1767786686857,-500.0,0.00031232,2]
[400714449,1767786686866,-500.0,0.00031232,2]
[400714450,1767786686875,-836.74,0.00031232,2]
[400714451,1767786686885,-500.0,0.00031232,2]
[400714452,1767786686894,-500.0,0.00031232,2]
[400714453,1767786686905,-500.0,0.00031232,2]
[400714454,1767786686915,-3962.5,0.00031232,2]
[400714455,1767786686925,-582.84,0.00031232,2]
[400714456,1767786686934,-500.0,0.00031232,2]
[400714457,1767786686944,-725.03,0.00031232,2]
[400714458,1767786686954,-2251.87,0.00031232,2]
[400714459,1767786686963,-956.27,0.00031232,2]
[400714460,1767786686974,-637.59,0.00031232,2]
[400714461,1767786686984,-500.0,0.00031232,2]
[400714462,1767786686993,-661.34,0.00031232,2]
[400714463,1767786687003,-927.69,0.00031232,2]
[400714464,1767786687011,-500.0,0.00031232,2]
[400714465,1767786687020,-4613.91,0.00031232,2]
[400714466,1767786687030,-14651.58,0.00031232,2]
[400714467,1767786687040,-500.0,0.00031232,2]
[400714468,1767786687049,-909.99,0.00031232,2]
[400714469,1767786687059,-2787.6,0.00031232,2]
[400714470,1767786687068,-500.0,0.00031232,2]
[400714471,1767786687077,-1890.14,0.00031232,2]
[400714472,1767786687086,-500.0,0.00031232,2]
[400714473,1767786687096,-505.05,0.00031232,2]
[400714474,1767786687105,-500.0,0.00031232,2]
[400714475,1767786687115,-500.0,0.00031232,2]
[400714476,1767786687124,-717.62,0.00031232,2]
[400714477,1767786687134,-853.68,0.00031232,2]
[400714478,1767786687144,-500.0,0.00031232,2]
[400714479,1767786687155,-1076.6,0.00031232,2]
[400714480,1767786687164,-689.83,0.00031232,2]
[400714481,1767786687174,-836.4,0.00031232,2]
[400714482,1767786687183,-192.31046126,0.00031232,2]
[400714483,1767786687193,-442.89147681,0.00031232,2]
[400714484,1767786687207,-797.84,0.00031232,2]
[400714485,1767786687216,-690.11,0.00031232,2]
[400714486,1767786687226,-3088.57,0.00031232,2]
[400714487,1767786687236,-373.26329317,0.00031232,2]
[400714488,1767786687246,-500.0,0.00031232,2]
[400714489,1767786687255,-2100.0,0.00031261,7]
[400714490,1767786687265,-307.6,0.00031284,4]
[400714491,1767786687277,-858.0,0.00031359,30]
[400714492,1767786687286,-848.5,0.00031359,30]
[400714493,1767786687296,-2100.0,0.00031363,7]
[400714494,1767786687306,-564.0,0.0003148,7]
[400714495,1767786687315,-3333.0958472,0.00031506,2]
[400714496,1767786687325,-557.84,0.00031506,2]
[400714497,1767786687334,-500.0,0.00031506,2]
[400714498,1767786687343,-500.0,0.00031506,2]
[400714499,1767786687353,-151.0,0.00031506,7]
[400714500,1767786687362,-151.0,0.00031506,31]
[400714501,1767786687372,-151.0,0.00031506,31]
[400714502,1767786687381,-913.08,0.00031506,2]
[400714503,1767786687391,-500.0,0.00031506,2]
[400714504,1767786687401,-500.0,0.00031506,2]
[400714505,1767786687410,-1000.0,0.00031506,2]
[400714506,1767786687420,-756.53,0.00031506,2]
[400714507,1767786687430,-601.36,0.00031506,2]
[400714508,1767786687440,-200.0,0.00031506,2]
[400714509,1767786687449,-500.0,0.00031506,2]
[400714510,1767786687458,-500.0,0.00031506,2]
[400714511,1767786687468,-836.74,0.00031506,2]
[400714512,1767786687477,-500.0,0.00031506,2]
[400714513,1767786687487,-500.0,0.00031506,2]
[400714514,1767786687496,-175.61547082,0.00031506,2]
[400714515,1767786687507,-3962.5,0.00031506,2]
[400714516,1767786687517,-582.84,0.00031506,2]
[400714517,1767786687527,-159.81329344,0.00031506,2]
[400714518,1767786687537,-725.03,0.00031506,2]
[400714519,1767786687547,-2251.87,0.00031506,2]
[400714520,1767786687556,-956.27,0.00031506,2]
[400714521,1767786687566,-637.59,0.00031506,2]
[400714522,1767786687576,-500.0,0.00031506,2]
[400714523,1767786687586,-661.34,0.00031506,2]
[400714524,1767786687597,-927.69,0.00031506,2]
[400714525,1767786687608,-4613.91,0.00031506,2]
[400714526,1767786687620,-500.0,0.00031506,2]
[400714527,1767786687630,-14651.58,0.00031506,2]
[400714528,1767786687641,-500.0,0.00031506,2]
[400714529,1767786687650,-909.99,0.00031506,2]
[400714530,1767786687660,-2787.6,0.00031506,2]
[400714531,1767786687670,-402.32,0.00031506,31]
[400714532,1767786687680,-500.0,0.00031506,2]
[400714533,1767786687690,-1890.14,0.00031506,2]
[400714534,1767786687699,-500.0,0.00031506,2]
[400714535,1767786687709,-505.05,0.00031506,2]
[400714536,1767786687718,-500.0,0.00031506,2]
[400714537,1767786687727,-500.0,0.00031506,2]
[400714538,1767786687737,-717.62,0.00031506,2]
[400714539,1767786687747,-853.68,0.00031506,2]
[400714540,1767786687756,-2410.47,0.00031506,8]
[400714541,1767786687766,-500.0,0.00031506,2]
[400714542,1767786687775,-1076.6,0.00031506,2]
[400714543,1767786687787,-689.83,0.00031506,2]
[400714544,1767786687797,-836.4,0.00031506,2]
[400714545,1767786687807,-797.84,0.00031506,2]
[400714546,1767786687817,-690.11,0.00031506,2]
[400714547,1767786687826,-3088.57,0.00031506,2]
[400714548,1767786687836,-549.0657396,0.00031507,30]
[400714549,1767786687845,-160.0,0.00031513,3]
[400714550,1767786687855,-1100.0,0.00031554,14]
[400714551,1767786687864,-231.19,0.000316,7]
[400714552,1767786687873,-204.71,0.000316,7]
[400714553,1767786687883,-2072.05,0.000316,14]
[400714554,1767786687894,-151.0,0.000316,31]
[400714555,1767786687903,-151.0,0.000316,31]
[400714556,1767786687912,-151.0,0.000316,31]
[400714557,1767786687923,-151.0,0.000316,31]
[400714558,1767786687932,-151.0,0.000316,31]
[400714559,1767786687941,-191.37491647,0.00031609,20]
[400714560,1767786687951,-2100.0,0.00031647,7]
[400714561,1767786687960,-564.0,0.00031687,2]
[400714562,1767786687970,-14624.46,0.000317,7]
[400714563,1767786687980,-2000.0,0.00031734,7]
[400714564,1767786687990,-3333.0958472,0.0003178,2]
[400714565,1767786688000,-557.84,0.0003178,2]
[400714566,1767786688009,-500.0,0.0003178,2]
[400714567,1767786688019,-500.0,0.0003178,2]
[400714568,1767786688030,-913.08,0.0003178,2]
[400714569,1767786688040,-500.0,0.0003178,2]
[400714570,1767786688050,-500.0,0.0003178,2]
[400714571,1767786688059,-1000.0,0.0003178,2]
[400714572,1767786688068,-756.53,0.0003178,2]
[400714573,1767786688078,-601.36,0.0003178,2]
[400714574,1767786688087,-200.0,0.0003178,2]
[400714575,1767786688096,-500.0,0.0003178,2]
[400714576,1767786688106,-500.0,0.0003178,2]
[400714577,1767786688115,-836.74,0.0003178,2]
[400714578,1767786688125,-528.82905795,0.0003178,2]
[400714579,1767786688135,-329.2989715,0.0003178,2]
[400714580,1767786688146,-779.19352814,0.0003178,2]
[400714584,1767786847468,500.0,0.00012217,2]
[400714585,1767786855273,155.0,7e-05,2]
[400714587,1767786888438,600.0,0.00030137,120]
[400714654,1767787838438,-500.0,0.00012224,2]
[400714656,1767787838449,-345.15393287,0.00012224,2]
[400714658,1767787838459,-613.80234406,0.00012224,2]
[400714660,1767787838469,-613.80234406,0.00012224,2]
[400714662,1767787838480,-500.0,0.00012224,2]
[400714663,1767787838489,-613.80234406,0.00012224,2]
[400714665,1767787838499,-613.80234406,0.00012224,2]
[400714667,1767787838510,-613.80234406,0.00012224,2]
[400714669,1767787838520,-613.80234406,0.00012224,2]
[400714671,1767787838533,-613.80234406,0.00012224,2]
[400714672,1767787838544,-317.23378008,0.00012224,2]
[400714674,1767787838555,-613.80234406,0.00012224,2]
[400714676,1767787838566,-613.80234406,0.00012224,2]
[400714678,1767787838578,-500.0,0.00012224,2]
[400714679,1767787838588,-613.80234407,0.00012224,2]
[400714681,1767787838600,-613.80234406,0.00012224,2]
[400714683,1767787838611,-613.80234406,0.00012224,2]
[400714685,1767787838622,-613.80234406,0.00012224,2]
[400714686,1767787838632,-613.80234406,0.00012224,2]
[400714688,1767787838643,-613.80234406,0.00012224,2]
[400714690,1767787838653,-613.80234406,0.00012224,2]
[400714692,1767787838664,-613.80234406,0.00012224,2]
[400714694,1767787838673,-613.80234406,0.00012224,2]
[400714696,1767787838683,-613.80234406,0.00012224,2]
[400714697,1767787838693,-613.80234406,0.00012224,2]
[400714699,1767787838704,-1000000.0,0.00012225,2]
[400714701,1767787838714,-41326.16072717,0.00012324,2]
[400714703,1767787838723,-176.26600234,0.00012325,2]
[400714705,1767787838734,-300.0,0.00012572,2]
[400714706,1767787838744,-300.0,0.00012572,2]
[400714708,1767787838753,-300.0,0.00012572,2]
[400714710,1767787838764,-300.0,0.00012572,2]
[400714712,1767787838774,-300.0,0.00012572,2]
[400714713,1767787838784,-300.0,0.00012572,2]
[400714715,1767787838794,-300.0,0.00012572,2]
[400714717,1767787838804,-300.0,0.00012572,2]
[400714719,1767787838814,-300.0,0.00012572,2]
[400714721,1767787838825,-300.0,0.00012572,2]
[400714723,1767787838835,-300.0,0.00012572,2]
[400714725,1767787838846,-300.0,0.00012572,2]
[400714726,1767787838857,-300.0,0.00012572,2]
[400714728,1767787838867,-300.0,0.00012572,2]
[400714730,1767787838877,-300.0,0.00012572,2]
[400714732,1767787838887,-600.0,0.00012572,2]
[400714734,1767787838897,-500.0,0.00013699,2]
[400714736,1767787838907,-720.0,0.00013829,2]
[400714737,1767787838923,-1000.0,0.00014247,2]
[400714739,1767787838934,-207.99388276,0.00014325,2]
[400714741,1767787838943,-1500.0,0.00014795,2]
[400714743,1767787838954,-100000.0,0.00014882,2]
[400714744,1767787838964,-864.0,0.00015212,2]
[400714746,1767787838974,-2000.0,0.00015342,2]
[400714748,1767787838984,-223.230025,0.00015679,2]
[400714750,1767787838994,-2500.0,0.0001589,2]
[400714752,1767787839005,-239.72176318,0.00016325,2]
[400714753,1767787839016,-200.0,0.00016329,2]
[400714755,1767787839026,-1000.0,0.000164,2]
[400714757,1767787839036,-3000.0,0.00016438,2]
[400714759,1767787839046,-183.85,0.0001644,2]
[400714761,1767787839056,-1000.0,0.00016734,2]
[400714763,1767787839067,-3500.0,0.00016986,2]
[400714765,1767787839078,-4000.0,0.00017534,2]
[400714766,1767787839088,-882.05613913,0.00018082,2]
[400714768,1767787839098,-271.4496436,0.00018325,2]
[400714770,1767787839109,-1000.0,0.00018407,2]
[400714772,1767787839119,-244.0,0.00018407,2]
[400714774,1767787839129,-223.230025,0.00019104,2]
[400714775,1767787839139,-352.8926,0.00019178,2]
[400714777,1767787839150,-352.8926,0.00019178,3]
[400714779,1767787839161,-352.8926,0.00019178,5]
[400714781,1767787839171,-352.8926,0.00019178,2]
[400714783,1767787839182,-352.8926,0.00019178,3]
[400714785,1767787839192,-352.8926,0.00019178,2]
[400714787,1767787839203,-352.8926,0.00019178,5]
[400714788,1767787839214,-352.8926,0.00019178,3]
[400714790,1767787839225,-352.8926,0.00019178,5]
[400714792,1767787839236,-352.8926,0.00019178,2]
[400714794,1767787839247,-352.8926,0.00019178,3]
[400714796,1767787839258,-352.8926,0.00019178,5]
[400714798,1767787839270,-350.92,0.00019178,2]
[400714815,1767787839504,-828.82,0.000192,2]
[400714817,1767787839514,-185.0,0.00019726,3]
[400714819,1767787839524,-163.78,0.000198,2]
[400714820,1767787839537,-1000.0,0.00020248,2]
[400714822,1767787839547,-492.0,0.00020248,2]
[400714823,1767787839556,-1041.66666667,0.00020292,2]
[400714825,1767787839565,-1000.0,0.00020306,2]
[400714826,1767787839575,-303.17752403,0.00020325,2]
[400714828,1767787839584,-167.77,0.000215,2]
[400714830,1767787839593,-1000.0,0.00022272,10]
[400714832,1767787839603,-791.0,0.00022272,10]
[400714834,1767787839612,-1152.2,0.000223,7]
[400714836,1767787839621,-334.90540445,0.00022325,2]
[400714838,1767787839631,-223.230025,0.00022528,2]
[400714840,1767787839640,-500.0,0.00023438,2]
[400714842,1767787839649,-151.0,0.00023727,2]
[400714844,1767787839658,-500.0,0.00023936,2]
[400714846,1767787839667,-500.0,0.00024324,2]
[400714848,1767787839676,-366.63328487,0.00024325,2]
[400714850,1767787839686,-1000.0,0.000245,10]
[400714852,1767787839695,-242.49928561,0.000245,10]
[400715064,1767787844634,-757.50071439,0.000245,10]
[400715065,1767787844644,-828.82,0.000245,14]
[400715066,1767787844653,-494.57928561,0.00024735,2]
[400715087,1767787945114,733.65560213,0.00030137,120]
[400715088,1767788067501,-300.0,0.00012222,2]
[400715089,1767788067529,-300.0,0.00012223,2]
[400715090,1767788067561,-500.0,0.00012223,2]
[400715091,1767788067590,-500.0,0.00012223,2]
[400715092,1767788067624,-500.0,0.00012223,2]
[400715093,1767788067658,-500.0,0.00012223,2]
[400715094,1767788067693,-500.0,0.00012223,2]
[400715095,1767788067721,-500.0,0.00012223,2]
[400715096,1767788067750,-500.0,0.00012223,2]
[400715097,1767788067779,-500.0,0.00012223,2]
[400715098,1767788067807,-331.78277313,0.00012223,2]
[400715099,1767788068013,-136.44445374,0.00012223,2]
[400715100,1767788068042,-156.65851521,0.00012223,2]
[400715101,1767788068070,-500.0,0.00012223,2]
[400715102,1767788068099,-500.0,0.00012223,2]
[400715103,1767788068128,-500.0,0.00012223,2]
[400715104,1767788068158,-500.0,0.00012223,2]
[400715105,1767788068186,-500.0,0.00012223,2]
[400715106,1767788068216,-500.0,0.00012223,2]
[400715107,1767788068245,-500.0,0.00012223,2]
[400715108,1767788068274,-500.0,0.00012223,2]
[400715109,1767788068304,-500.0,0.00012223,2]
[400715110,1767788068432,-500.0,0.00012223,2]
[400715111,1767788068462,-500.0,0.00012223,2]
[400715112,1767788068492,-500.0,0.00012223,2]
[400715113,1767788068521,-500.0,0.00012223,2]
[400715114,1767788068550,-500.0,0.00012223,2]
[400715115,1767788068577,-500.0,0.00012223,2]
[400715116,1767788068609,-500.0,0.00012223,2]
[400715117,1767788068639,-500.0,0.00012223,2]
[400715118,1767788068669,-500.0,0.00012223,2]
[400715119,1767788068697,-500.0,0.00012223,2]
[400715120,1767788068735,-500.0,0.00012223,2]
[400715121,1767788068763,-500.0,0.00012223,2]
[400715122,1767788068791,-500.0,0.00012223,2]
[400715123,1767788068819,-500.0,0.00012223,2]
[400715124,1767788068847,-500.0,0.00012223,2]
[400715125,1767788068876,-500.0,0.00012223,2]
[400715126,1767788068906,-500.0,0.00012223,2]